bitfinex/quotes_SOLUSD_20260119
["timestamp","ask_amount","ask_price","bid_price","bid_amount"]
[1768782203562,9.23948472,134.02,133.95,9.23948472]
[1768782203746,7.46157289,134.02,133.95,9.23948472]
[1768782204065,5.82344201,134.32,133.95,9.23948472]
[1768782204066,15.13650702,134.11,134.01,9.23948472]
[1768782204262,15.13650702,134.11,134.01,5.34408856]
[1768782204463,0.1,134.12,134.01,5.34408856]
[1768782204768,4.18755203,134.14,134.03,5.34408856]
[1768782204953,4.18755203,134.26,134.1,11.42268063]
[1768782205150,11.42268063,134.24,134.08,11.42268063]
[1768782205353,11.42268063,134.24,134.09,11.42268063]
[1768782205549,11.42268063,134.24,134.04,1.0]
[1768782205754,11.42268063,134.14,134.08,7.45823389]
[1768782205954,11.42268063,134.13,134.0,1.0]
[1768782206159,11.42268063,134.11,134.03,18.65126737]
[1768782206356,5.34408856,134.16,133.95,1.0]
[1768782206563,5.34408856,134.13,133.96,18.66142173]
[1768782206767,11.42268063,134.02,133.98,7.46328758]
[1768782206960,11.42268063,134.02,133.96,18.66142173]
[1768782206961,5.34408856,134.13,133.99,7.46323338]
[1768782207161,5.34408856,134.13,133.93,34.92607445]
[1768782207162,4.18755203,134.09,133.93,34.92607445]
[1768782207364,4.18755203,134.04,133.94,1.0]
[1768782207561,4.18755203,134.04,133.97,18.66031739]
[1768782207756,15.61023266,134.03,133.94,1.0]
[1768782208069,4.18755203,133.99,133.94,7.46602956]
[1768782208370,4.18755203,134.04,133.94,7.46602956]
[1768782208542,11.42268063,134.06,133.95,1.0]
[1768782208746,4.18755203,134.06,133.95,1.0]
[1768782209168,4.18755203,134.06,133.99,11.42268063]
[1768782209169,4.18755203,134.05,133.99,11.42268063]
[1768782209468,4.18755203,134.05,133.95,1.0]
[1768782209651,11.42268063,134.04,133.94,26.13110347]
[1768782209853,4.18755203,134.03,133.94,18.66507391]
[1768782210054,7.46104372,134.03,133.92,1.0]
[1768782210270,4.18755203,134.01,133.89,38.34280346]
[1768782210572,4.18755203,134.01,133.92,11.42268063]
[1768782210870,4.18755203,134.01,133.94,11.42268063]
[1768782211073,4.18755203,134.01,133.95,7.46505161]
[1768782211257,15.61023266,134.01,133.95,18.88773224]
[1768782211645,11.42268063,134.0,133.92,1.0]
[1768782211849,4.18755203,134.07,133.99,11.42268063]
[1768782212064,4.18755203,134.07,133.95,19.66272692]
[1768782212270,15.61023266,134.1,133.98,1.0]
[1768782212463,4.18755203,134.1,134.04,11.42268063]
[1768782212669,4.18755203,134.1,134.03,11.42268063]
[1768782212854,4.18755203,134.09,134.03,11.42268063]
[1768782213053,4.18755203,134.09,134.04,11.42268063]
[1768782213252,4.18755203,134.09,133.99,27.12135233]
[1768782213463,4.18755203,134.09,134.04,11.42268063]
[1768782213669,4.18755203,134.09,133.99,27.12135233]
[1768782213670,23.0680403,134.09,134.03,11.42268063]
[1768782214012,11.42268063,134.12,134.05,11.42268063]
[1768782214190,11.42268063,134.13,134.0,1.0]
[1768782214345,7.45378652,134.16,134.03,1.5]
[1768782214651,7.45378652,134.16,134.02,5.34408856]
[1768782214652,26.08825282,134.16,134.02,1.5]
[1768782214850,11.42268063,134.14,134.07,11.42268063]
[1768782215078,26.08825282,134.16,134.02,1.5]
[1768782215274,26.0863084,134.17,134.04,11.42268063]
[1768782215452,5.34408856,134.14,133.99,1.5]
[1768782215773,11.42268063,134.06,133.96,5.34408856]
[1768782215965,4.18755203,134.02,133.96,7.46483841]
[1768782216158,4.18755203,134.0,133.95,7.46542183]
[1768782216361,4.18755203,133.97,133.85,1.5]
[1768782216561,4.18755203,133.97,133.89,7.4687905]
[1768782216866,4.18755203,133.97,133.9,7.46802215]
[1768782217173,4.18755203,133.92,133.85,18.67751256]
[1768782217354,4.18755203,133.94,133.84,18.67882994]
[1768782217676,4.18755203,133.92,133.87,11.42268063]
[1768782217873,4.27328546,133.9,133.82,34.94175637]
[1768782218074,4.27328546,133.89,133.84,11.42268063]
[1768782218275,4.27328546,133.89,133.82,34.94175637]
[1768782218466,4.27328546,133.95,133.88,11.42268063]
[1768782218657,4.27328546,133.95,133.89,11.42268063]
[1768782218852,4.27328546,133.96,133.87,8.96990266]
[1768782219054,4.27328546,133.96,133.92,11.42268063]
[1768782219357,7.46497698,133.96,133.88,11.42268063]
[1768782219678,4.27328546,133.92,133.85,7.47104968]
[1768782219975,4.27328546,133.94,133.91,11.42268063]
[1768782220177,4.27328546,133.97,133.92,11.42268063]
[1768782220387,4.27328546,133.96,133.86,1.5]
[1768782220559,4.27328546,133.94,133.88,11.42268063]
[1768782220883,4.27328546,133.94,133.85,26.14867388]
[1768782221049,4.27328546,133.94,133.88,11.42268063]
[1768782221254,4.27328546,133.94,133.89,11.42268063]
[1768782221452,4.27328546,133.9,133.82,34.94078139]
[1768782221654,15.69596609,133.9,133.83,11.42268063]
[1768782221873,26.11745391,134.01,133.83,11.42268063]
[1768782221874,15.69596609,133.89,133.83,11.42268063]
[1768782222072,15.69596609,133.89,133.82,16.26]
[1768782222073,4.27328546,133.87,133.82,16.26]
[1768782222274,4.27328546,133.93,133.84,11.42268063]
[1768782222578,4.27328546,133.93,133.88,11.42268063]
[1768782222873,4.27328546,133.95,133.89,11.42268063]
[1768782223080,4.27328546,133.93,133.89,11.42268063]
[1768782223374,15.69596609,133.93,133.86,26.14672044]
[1768782223670,15.69596609,133.89,133.83,11.42268063]
[1768782223875,4.27328546,133.88,133.83,7.47169568]
[1768782224075,4.27328546,133.89,133.84,18.89424131]
[1768782224273,4.27328546,133.87,133.8,16.26]
[1768782224468,4.27328546,133.87,133.81,11.42268063]
[1768782224854,15.69596609,133.84,133.8,16.26]
[1768782225051,4.27328546,133.84,133.8,7.47345351]
[1768782225258,15.69596609,133.84,133.78,7.47479997]
[1768782225474,4.27328546,133.82,133.76,11.42268063]
[1768782225672,4.27328546,133.81,133.76,11.42268063]
[1768782225869,26.15103749,133.84,133.75,7.47663551]
[1768782225870,15.69596609,133.84,133.75,26.16822429]
[1768782226191,7.47106648,133.85,133.75,26.16822429]
[1768782226192,4.27328546,133.81,133.76,11.42268063]
[1768782226655,15.69596609,133.83,133.77,11.42268063]
[1768782226852,4.27328546,133.82,133.77,11.42268063]
[1768782227056,4.27328546,133.8,133.75,18.89931614]
[1768782227260,4.27328546,133.84,133.78,11.42268063]
[1768782227459,15.69596609,133.83,133.74,1.5]
[1768782227664,11.42268063,133.83,133.77,11.42268063]
[1768782227982,15.69596609,133.82,133.76,7.47593992]
[1768782228181,7.47164688,133.84,133.71,23.10147666]
[1768782228182,4.27328546,133.77,133.71,23.10147666]
[1768782228371,4.27328546,133.77,133.72,11.42268063]
[1768782228572,4.27328546,133.76,133.72,7.47831289]
[1768782229383,4.27328546,133.76,133.71,30.58026962]
[1768782229679,9.61737402,133.81,133.72,1.5]
[1768782229896,4.27328546,133.8,133.71,86.67148662]
[1768782230066,4.27328546,133.79,133.71,49.27712569]
[1768782230265,4.27328546,133.79,133.75,11.42268063]
[1768782230566,15.69596609,133.79,133.73,11.42268063]
[1768782230764,4.27328546,133.79,133.74,11.42268063]
[1768782231375,4.27328546,133.82,133.77,11.42268063]
[1768782231581,4.27328546,133.82,133.72,1.5]
[1768782231888,4.27328546,133.82,133.79,11.42268063]
[1768782232192,4.27328546,133.82,133.78,11.42268063]
[1768782232563,4.27328546,133.82,133.72,1.5]
[1768782232860,4.05098939,133.85,133.76,1.5]
[1768782233182,4.05098939,133.85,133.81,11.47144718]
[1768782233363,4.05098939,133.83,133.78,11.47144718]
[1768782233684,4.05098939,133.79,133.76,7.47606369]
[1768782233860,4.05098939,133.79,133.73,18.69337024]
[1768782233861,4.05098939,133.79,133.75,18.94801378]
[1768782234189,4.05098939,133.79,133.76,7.4758753]
[1768782234371,4.05098939,133.81,133.75,11.47144718]
[1768782234565,4.05098939,133.8,133.74,7.47693264]
[1768782234759,4.05098939,133.77,133.71,23.10147666]
[1768782234960,26.15090878,133.84,133.75,11.47144718]
[1768782234961,4.05098939,133.79,133.75,11.47144718]
[1768782235164,4.05098939,133.79,133.76,11.47144718]
[1768782235375,4.05098939,133.77,133.72,18.94973268]
[1768782235574,4.05098939,133.75,133.71,23.10147666]
[1768782235775,4.05098939,133.75,133.71,14.67955666]
[1768782236691,4.05098939,133.77,133.73,11.47144718]
[1768782237193,4.05098939,133.8,133.75,11.47144718]
[1768782237390,4.05098939,133.8,133.77,11.47144718]
[1768782237684,4.05098939,133.83,133.79,11.47144718]
[1768782237871,4.05098939,133.83,133.8,11.47144718]
[1768782238265,4.05098939,133.83,133.79,11.47144718]
[1768782238480,4.05098939,133.83,133.81,11.47144718]
[1768782238692,7.47103994,133.86,133.77,26.16387041]
[1768782238693,4.05098939,133.86,133.77,26.16387041]
[1768782238870,4.05098939,133.86,133.82,11.47144718]
[1768782239065,4.05098939,133.86,133.83,11.47144718]
[1768782239265,4.05098939,133.86,133.77,7.47507622]
[1768782239488,7.47104968,133.85,133.78,11.47144718]
[1768782239666,11.47144718,133.84,133.78,11.47144718]
[1768782239965,15.52243657,133.8,133.72,4.41224951]
[1768782240165,15.52243657,133.8,133.73,11.47144718]
[1768782240369,11.47144718,133.76,133.71,22.15824042]
[1768782240782,11.47144718,133.75,133.71,14.67955666]
[1768782240980,4.05098939,133.8,133.74,11.47144718]
[1768782241180,4.05098939,133.83,133.78,11.47144718]
[1768782241383,22.9972716,133.79,133.72,18.9494371]
[1768782241691,11.47144718,133.74,133.71,14.67955666]
[1768782242079,22.45,133.78,133.71,14.67955666]
[1768782242380,26.16083547,133.79,133.67,4.61224951]
[1768782242381,7.45949009,133.71,133.67,0.2]
[1768782242567,3.38901061,133.71,133.67,12.09326175]
[1768782242763,3.38901061,133.71,133.67,0.2]
[1768782243388,14.86045779,133.71,133.67,0.2]
[1768782243567,3.38901061,133.71,133.67,0.2]
[1768782243769,11.47144718,133.68,133.67,1e-08]
[1768782244021,3.93067094,133.69,133.61,11.89629696]
[1768782244184,11.47144718,133.65,133.59,11.89732673]
[1768782244369,11.47144718,133.64,133.59,4.41224951]
[1768782244569,26.38067094,133.67,133.59,4.41224951]
[1768782244785,11.47144718,133.66,133.6,7.48493684]
[1768782244986,3.93067094,133.67,133.59,23.36928529]
[1768782245287,5.34408856,133.69,133.59,4.41224951]
[1768782245474,11.47144718,133.67,133.61,11.47144718]
[1768782245669,7.48128854,133.67,133.6,7.48457776]
[1768782245872,7.48128854,133.67,133.59,23.36920255]
[1768782246179,11.47144718,133.65,133.59,23.36889098]
[1768782246380,11.47144718,133.64,133.58,7.68611028]
[1768782246583,11.47144718,133.64,133.58,19.15755746]
[1768782246777,11.47144718,133.61,133.58,0.2]
[1768782246976,30.11473497,133.67,133.59,11.47144718]
[1768782247172,11.47144718,133.65,133.59,18.95686722]
[1768782247401,11.47144718,133.63,133.58,7.68599536]
[1768782247571,18.9533618,133.66,133.6,11.47144718]
[1768782247885,11.47144718,133.65,133.59,18.95698379]
[1768782248190,9.2747595,133.68,133.61,4.41224951]
[1768782248191,5.34408856,133.68,133.61,4.41224951]
[1768782248392,37.38893772,133.73,133.6,11.47144718]
[1768782248393,3.93067094,133.73,133.63,4.41224951]
[1768782248596,11.47144718,133.72,133.63,4.41224951]
[1768782248896,11.47144718,133.74,133.69,11.47144718]
[1768782249080,11.47144718,133.73,133.67,15.88369669]
[1768782249279,7.47764705,133.74,133.64,4.41224951]
[1768782249280,11.47144718,133.71,133.64,4.41224951]
[1768782249494,3.93067094,133.7,133.61,4.41224951]
[1768782249684,11.47144718,133.65,133.59,26.1995122]
[1768782249997,3.93067094,133.68,133.59,26.1995122]
[1768782249998,11.47144718,133.66,133.6,4.41224951]
[1768782250183,3.93067094,133.68,133.6,4.41224951]
[1768782250381,11.47144718,133.64,133.59,7.48553661]
[1768782250579,3.93067094,133.66,133.58,7.68605119]
[1768782250580,11.47144718,133.63,133.58,7.68605119]
[1768782250889,11.47144718,133.65,133.58,30.81367725]
[1768782251090,3.93067094,133.72,133.64,15.88369669]
[1768782251391,11.47144718,133.71,133.65,11.47144718]
[1768782251700,11.47144718,133.71,133.65,18.95367688]
[1768782251888,11.40980273,133.71,133.63,11.47144718]
[1768782252194,11.47144718,133.66,133.61,7.48402963]
[1768782252496,11.47144718,133.67,133.61,7.48402963]
[1768782252695,11.47144718,133.66,133.61,7.48402963]
[1768782252997,22.88124991,133.71,133.65,11.47144718]
[1768782253177,22.88124991,133.71,133.64,7.48272084]
[1768782253583,22.88124991,133.71,133.65,11.47144718]
[1768782253792,22.6249133,133.74,133.67,11.47144718]
[1768782254010,11.40621348,133.77,133.7,11.47144718]
[1768782254302,11.40621348,133.77,133.72,11.47144718]
[1768782254303,11.47144718,133.77,133.72,11.47144718]
[1768782254592,3.93067094,133.77,133.69,4.41224951]
[1768782255002,11.47144718,133.76,133.69,4.41224951]
[1768782255311,11.47144718,133.74,133.68,11.47144718]
[1768782255604,11.47144718,133.72,133.67,7.48093476]
[1768782255802,11.47144718,133.73,133.67,18.95238194]
[1768782256105,7.47666735,133.75,133.68,11.89268364]
[1768782256302,18.94811453,133.75,133.68,11.89268364]
[1768782256490,11.47144718,133.74,133.68,4.41224951]
[1768782256691,7.47666735,133.75,133.68,11.89269083]
[1768782257009,11.47144718,133.74,133.68,11.89269083]
[1768782257182,3.93067094,133.76,133.68,30.59406725]
[1768782257383,7.47606342,133.77,133.71,11.47144718]
[1768782257597,18.94654495,133.78,133.72,11.47144718]
[1768782258291,11.47144718,133.76,133.7,23.36270052]
[1768782258490,22.87721589,133.78,133.72,11.47144718]
[1768782258812,18.94654495,133.78,133.72,11.47144718]
[1768782258988,11.47144718,133.77,133.7,11.89159285]
[1768782259191,11.47144718,133.76,133.69,7.4799828]
[1768782259382,18.94757142,133.76,133.7,18.9507726]
[1768782259705,37.6377628,133.76,133.7,11.47144718]
[1768782259897,37.6377628,133.76,133.67,7.48102265]
[1768782259898,15.40211812,133.73,133.67,7.48102265]
[1768782260105,11.47144718,133.72,133.67,7.48102265]
[1768782260297,11.47144718,133.71,133.66,15.88369669]
[1768782260494,11.47144718,133.69,133.64,7.48275655]
[1768782260803,11.47144718,133.7,133.64,7.48275655]
[1768782261106,15.40211812,133.71,133.65,11.47144718]
[1768782261309,11.47144718,133.72,133.65,4.41224951]
[1768782261493,9.2747595,133.74,133.64,7.48275655]
[1768782261494,11.47144718,133.7,133.64,7.48275655]
[1768782261688,11.47144718,133.7,133.64,11.47144718]
[1768782262005,5.34408856,133.7,133.64,7.48237755]
[1768782262308,26.17271185,133.73,133.65,11.47144718]
[1768782262309,11.47144718,133.71,133.65,11.47144718]
[1768782262497,11.47144718,133.69,133.63,18.95472069]
[1768782263005,11.47144718,133.7,133.64,7.48264121]
[1768782263309,11.47144718,133.67,133.61,18.95551069]
[1768782263492,11.47144718,133.66,133.6,11.7931377]
[1768782263689,3.93067094,133.67,133.6,23.26458488]
[1768782264004,11.47144718,133.65,133.58,28.27396525]
[1768782264200,11.47144718,133.64,133.59,7.48542389]
[1768782264395,11.47144718,133.64,133.59,11.47144718]
[1768782264911,11.47144718,133.65,133.59,15.77964715]
[1768782265101,7.48055056,133.68,133.61,11.47144718]
[1768782265311,11.47144718,133.65,133.59,11.47144718]
[1768782265601,11.47144718,133.65,133.6,11.47144718]
[1768782265811,11.47144718,133.64,133.58,39.7455797]
[1768782266010,22.88484167,133.65,133.59,11.47144718]
[1768782266385,11.47144718,133.64,133.58,39.7455797]
[1768782266605,11.47144718,133.64,133.58,28.27413252]
[1768782266788,18.95417073,133.65,133.59,7.48512367]
[1768782267009,11.47144718,133.65,133.59,18.95657085]
[1768782267223,3.93067094,133.7,133.62,15.77964715]
[1768782267509,3.93067094,133.7,133.59,7.48512367]
[1768782267510,15.40211812,133.71,133.65,11.47144718]
[1768782267713,3.93067094,133.7,133.65,11.47144718]
[1768782267913,7.47831289,133.72,133.65,11.47144718]
[1768782268104,11.47144718,133.71,133.66,11.47144718]
[1768782268309,3.93067094,133.76,133.68,11.47144718]
[1768782268610,15.40211812,133.69,133.6,4.30819997]
[1768782268814,15.40211812,133.69,133.59,63.62705045]
[1768782268815,11.47144718,133.69,133.62,4.30819997]
[1768782269020,11.47144718,133.7,133.64,11.47144718]
[1768782269189,7.47831289,133.72,133.65,4.30819997]
[1768782269512,11.47144718,133.72,133.67,11.47144718]
[1768782269814,11.47144718,133.74,133.69,11.47144718]
[1768782270024,15.40211812,133.75,133.69,11.47144718]
[1768782270426,11.47144718,133.73,133.62,4.30819997]
[1768782270611,11.47144718,133.71,133.65,4.30819997]
[1768782270816,11.47144718,133.72,133.67,18.95255737]
[1768782271131,11.47144718,133.71,133.65,11.47144718]
[1768782271502,11.47144718,133.69,133.63,4.30819997]
[1768782271703,11.47144718,133.69,133.64,18.95405799]
[1768782271923,3.93067094,133.7,133.64,18.95405799]
[1768782272225,3.93067094,133.72,133.66,18.95305217]
[1768782272538,11.40741873,133.75,133.69,11.47144718]
[1768782272711,18.94760025,133.76,133.69,4.30819997]
[1768782272905,3.93067094,133.78,133.71,11.47144718]
[1768782273109,18.68652355,133.79,133.73,11.47144718]
[1768782273110,11.47144718,133.79,133.73,11.47144718]
[1768782273513,16.01599873,133.78,133.72,15.77964715]
[1768782273718,11.47144718,133.78,133.73,11.47144718]
[1768782273938,11.47144718,133.78,133.72,15.77964715]
[1768782274233,11.40469789,133.8,133.72,11.78648634]
[1768782274413,3.93067094,133.8,133.72,11.78648634]
[1768782274618,5.58880458,133.84,133.72,11.78648634]
[1768782274619,3.93067094,133.82,133.75,11.47144718]
[1768782274812,11.47144718,133.77,133.7,4.30819997]
[1768782275138,11.47144718,133.79,133.73,11.47144718]
[1768782275310,3.93067094,133.82,133.75,11.47144718]
[1768782275509,22.8742843,133.83,133.77,11.47144718]
[1768782275836,16.02361149,133.82,133.76,11.47144718]
[1768782276051,20.9909227,133.86,133.79,4.30819997]
[1768782276327,4.55148895,133.85,133.8,11.47144718]
[1768782276529,42.40360707,133.85,133.8,11.47144718]
[1768782276722,4.55163657,133.84,133.78,11.47144718]
[1768782276911,4.55163657,133.84,133.8,11.47144718]
[1768782277108,11.47144718,133.84,133.78,11.47144718]
[1768782277334,26.14479773,133.87,133.76,11.47144718]
[1768782277335,11.47144718,133.82,133.76,11.47144718]
[1768782277532,3.93067094,133.81,133.75,16.3]
[1768782277728,11.47144718,133.81,133.75,27.77144718]
[1768782278126,11.47144718,133.78,133.72,11.47144718]
[1768782278325,11.47144718,133.78,133.72,23.10169794]
[1768782278538,11.47144718,133.78,133.73,11.47144718]
[1768782279044,7.47332003,133.81,133.73,4.15234025]
[1768782279240,11.47144718,133.8,133.74,4.15234025]
[1768782279532,11.47144718,133.78,133.72,4.15234025]
[1768782279735,11.47144718,133.78,133.72,15.62378743]
[1768782280115,18.94668504,133.78,133.72,15.62378743]
[1768782280310,7.47523786,133.78,133.72,15.62378743]
[1768782280516,11.47144718,133.76,133.7,11.47144718]
[1768782281015,11.47144718,133.76,133.7,7.47941562]
[1768782281211,30.09330601,133.78,133.71,15.62378743]
[1768782281410,11.47144718,133.75,133.69,31.90378743]
[1768782281831,9.2747595,133.77,133.69,31.90378743]
[1768782282131,11.47144718,133.76,133.7,18.95081098]
[1768782282333,23.49917637,133.75,133.69,15.62378743]
[1768782282539,18.94808269,133.75,133.67,4.15234025]
[1768782282742,11.47144718,133.72,133.66,18.95261618]
[1768782283037,7.47594718,133.77,133.71,11.47144718]
[1768782283212,3.93067094,133.8,133.71,4.15234025]
[1768782283533,11.47144718,133.77,133.71,15.62378743]
[1768782283722,16.02618516,133.76,133.7,11.47144718]
[1768782283919,11.47144718,133.76,133.7,11.47144718]
[1768782284121,9.2747595,133.78,133.7,18.95075034]
[1768782284432,63.52314646,133.81,133.71,4.15234025]
[1768782284433,11.47144718,133.76,133.71,4.15234025]
[1768782284618,42.98025679,133.77,133.71,15.62378743]
[1768782284930,42.98025679,133.77,133.71,23.10250145]
[1768782284931,24.2914626,133.77,133.71,23.10250145]
[1768782285132,18.94737404,133.77,133.71,23.10250145]
[1768782285334,11.40518408,133.79,133.72,4.15234025]
[1768782285537,11.47144718,133.75,133.67,4.15234025]
[1768782285836,11.47144718,133.75,133.68,4.15234025]
[1768782285837,16.03152827,133.74,133.68,4.15234025]
[1768782286047,15.40211812,133.75,133.68,4.15234025]
[1768782286225,11.47144718,133.73,133.68,4.15234025]
[1768782286427,12.03791754,133.74,133.68,15.62378743]
[1768782286428,18.94864173,133.74,133.68,15.62378743]
[1768782286626,4.56108973,133.73,133.68,15.62378743]
[1768782286839,39.43501519,133.77,133.71,11.47144718]
[1768782287021,4.56298996,133.76,133.72,11.47144718]
[1768782287342,7.47495888,133.78,133.74,11.47144718]
[1768782287647,4.56365071,133.77,133.71,4.15234025]
[1768782287817,16.03509789,133.77,133.71,15.62378743]
[1768782288021,7.47495888,133.78,133.75,11.47144718]
[1768782288225,11.47144718,133.78,133.72,11.47144718]
[1768782288532,7.47440017,133.79,133.74,11.47144718]
[1768782288730,5.58880458,133.84,133.75,11.47144718]
[1768782288731,9.51947552,133.84,133.75,11.47144718]
[1768782288933,4.56482881,133.83,133.78,11.47144718]
[1768782289134,7.47216618,133.83,133.79,11.47144718]
[1768782289448,7.47216618,133.83,133.78,11.47144718]
[1768782289645,7.47216618,133.83,133.79,11.47144718]
[1768782289833,7.47216618,133.83,133.78,11.47144718]
[1768782290319,7.47216618,133.83,133.77,0.8978046]
[1768782290520,26.15258163,133.83,133.77,12.36925178]
[1768782290842,8.91649759,133.82,133.74,11.62910327]
[1768782291143,4.35407521,133.8,133.75,11.47144718]
[1768782291317,4.35407521,133.8,133.74,11.62947389]
[1768782291318,7.47157616,133.85,133.79,15.62378743]
[1768782291642,4.35407521,133.84,133.76,4.15234025]
[1768782291940,4.35407521,133.84,133.79,11.47144718]
[1768782292143,15.82552239,133.84,133.78,11.47144718]
[1768782292349,7.47157616,133.85,133.72,4.15234025]
[1768782292350,11.47144718,133.79,133.72,4.15234025]
[1768782292537,11.47144718,133.79,133.73,11.47144718]
[1768782293147,4.33914802,133.82,133.77,11.48318096]
[1768782293444,7.4717932,133.84,133.78,4.08387183]
[1768782293742,7.4717932,133.84,133.8,11.48318096]
[1768782293920,7.4717932,133.84,133.79,11.48318096]
[1768782294118,7.47114122,133.85,133.8,11.48318096]
[1768782294419,4.33914802,133.89,133.84,11.48318096]
[1768782294719,11.8068502,133.91,133.86,11.48318096]
[1768782294918,11.8068502,133.91,133.83,4.08387183]
[1768782295129,7.46721838,133.92,133.88,11.48318096]
[1768782295322,7.46721838,133.92,133.88,7.94301178]
[1768782295627,7.46635055,133.94,133.89,11.48318096]
[1768782295818,11.48318096,133.91,133.85,4.08387183]
[1768782296017,11.48318096,133.91,133.85,15.56705279]
[1768782296018,15.82232898,133.91,133.85,15.56705279]
[1768782296214,4.33914802,133.93,133.88,11.48318096]
[1768782296425,42.95869398,133.94,133.86,11.48318096]
[1768782296426,15.82232898,133.92,133.86,11.48318096]
[1768782296821,4.33914802,133.95,133.9,11.48318096]
[1768782297143,4.33914802,133.94,133.87,11.55363856]
[1768782297448,4.33914802,133.94,133.9,6.88501246]
[1768782297941,4.33914802,133.94,133.88,6.88501246]
[1768782297942,11.22416048,133.94,133.88,6.88501246]
[1768782298132,4.33914802,133.94,133.88,10.96888429]
[1768782298320,4.33914802,133.94,133.85,18.67658505]
[1768782298321,14.35159948,133.93,133.86,11.55408928]
[1768782298520,30.47220259,133.93,133.87,6.88501246]
[1768782298742,6.88501246,133.92,133.86,10.96888429]
[1768782298940,4.33914802,133.92,133.86,4.08387183]
[1768782299124,5.34408856,133.95,133.85,4.08387183]
[1768782299325,7.46478558,133.97,133.92,6.88501246]
[1768782299537,30.46482783,133.97,133.91,10.96888429]
[1768782299734,6.88501246,133.95,133.89,10.96888429]
[1768782299939,4.33914802,133.96,133.89,10.96888429]
[1768782300238,4.33914802,133.96,133.91,6.88501246]
[1768782300438,26.12915266,133.95,133.9,4.08387183]
[1768782300618,37.35331314,133.95,133.87,4.08387183]
[1768782300823,6.88501246,133.94,133.87,4.08387183]
[1768782301040,11.22416048,133.94,133.87,4.08387183]
[1768782301233,11.22416048,133.94,133.88,6.88501246]
[1768782301438,4.33914802,133.94,133.84,4.08387183]
[1768782301647,31.47324122,133.95,133.84,4.08387183]
[1768782301648,6.88501246,133.9,133.84,4.08387183]
[1768782301847,6.88501246,133.86,133.8,4.08387183]
[1768782302040,6.88501246,133.86,133.8,10.96888429]
[1768782302441,18.69521016,133.85,133.79,6.88501246]
[1768782302632,6.88501246,133.83,133.73,4.08387183]
[1768782302835,5.34408856,133.82,133.74,4.08387183]
[1768782303037,6.88501246,133.8,133.75,4.08387183]
[1768782303236,5.34408856,133.82,133.75,11.56010251]
[1768782303453,6.88501246,133.8,133.74,4.08387183]
[1768782303639,6.88501246,133.78,133.72,18.44707561]
[1768782303836,6.88501246,133.76,133.68,4.08387183]
[1768782304033,6.88501246,133.74,133.68,4.08387183]
[1768782304227,4.33914802,133.77,133.69,11.56333486]
[1768782304432,11.22416048,133.73,133.67,4.08387183]
[1768782304634,4.33914802,133.73,133.67,4.08387183]
[1768782304828,6.88501246,133.71,133.65,6.88501246]
[1768782305028,6.88501246,133.71,133.64,4.08387183]
[1768782305029,4.33914802,133.75,133.68,6.88501246]
[1768782305239,4.33914802,133.75,133.68,4.08387183]
[1768782305443,6.88501246,133.7,133.64,6.88501246]
[1768782305751,12.22910102,133.75,133.69,10.96888429]
[1768782305953,5.34408856,133.75,133.69,4.08387183]
[1768782306129,6.88501246,133.73,133.67,4.08387183]
[1768782306329,6.88501246,133.73,133.67,10.96888429]
[1768782306330,7.47775368,133.73,133.67,10.96888429]
[1768782306525,11.22416048,133.72,133.65,4.08387183]
[1768782306738,6.88501246,133.69,133.63,10.96888429]
[1768782306941,6.88501246,133.72,133.66,6.88501246]
[1768782307152,6.88501246,133.7,133.64,4.08387183]
[1768782307445,6.88501246,133.67,133.61,4.08387183]
[1768782307647,12.22910102,133.7,133.64,10.96888429]
[1768782307853,6.88501246,133.69,133.64,4.08387183]
[1768782308060,11.22416048,133.72,133.66,6.88501246]
[1768782308354,14.36493311,133.7,133.65,4.08387183]
[1768782308557,6.88501246,133.68,133.63,4.08387183]
[1768782308929,6.88501246,133.67,133.6,4.08387183]
[1768782309144,6.88501246,133.66,133.6,10.96888429]
[1768782309347,6.88501246,133.64,133.59,7.68556744]
[1768782309654,26.17849955,133.7,133.64,4.08387183]
[1768782309952,6.88501246,133.68,133.62,10.96888429]
[1768782310250,6.88501246,133.65,133.59,11.76943927]
[1768782310444,12.22910102,133.69,133.64,4.08387183]
[1768782310644,6.88501246,133.67,133.62,4.08387183]
[1768782310848,12.82431932,133.69,133.6,4.08387183]
[1768782310849,6.88501246,133.66,133.6,4.08387183]
[1768782311057,6.88501246,133.65,133.6,4.08387183]
[1768782311263,31.52429688,133.69,133.61,4.08387183]
[1768782311464,4.33914802,133.67,133.59,18.6543742]
[1768782311636,6.88501246,133.65,133.59,11.16888429]
[1768782311839,4.33914802,133.65,133.59,0.2]
[1768782312340,6.88501246,133.6,133.58,0.2]
[1768782312537,6.88501246,133.59,133.53,4.08387183]
[1768782312740,6.88501246,133.58,133.53,4.08387183]
[1768782312936,6.88501246,133.57,133.53,4.08387183]
[1768782313150,6.88501246,133.58,133.53,4.08387183]
[1768782313362,6.88501246,133.55,133.5,4.08387183]
[1768782313749,4.33914802,133.58,133.51,4.08387183]
[1768782313951,4.33914802,133.58,133.51,10.96888429]
[1768782314151,30.53691652,133.6,133.54,6.88501246]
[1768782314449,6.88501246,133.56,133.5,7.4906367]
[1768782314831,4.33914802,133.59,133.54,6.88501246]